fUSD/lending_fUSD_20241111
["ID","MTS","AMOUNT","RATE_DAILY","PERIOD"]
[341998644,1731354647663,-500.0,0.00013972,2]
[341998646,1731354647674,-512.65,0.00013972,2]
[341998649,1731354647683,-610.47,0.00013972,2]
[341998651,1731354647692,-512.65,0.00013972,2]
[341998653,1731354647702,-610.47,0.00013972,2]
[341998655,1731354647711,-512.65,0.00013972,2]
[341998657,1731354647721,-610.47,0.00013972,2]
[341998659,1731354647730,-512.65,0.00013972,2]
[341998661,1731354647739,-610.47,0.00013972,2]
[341998663,1731354647749,-512.65,0.00013972,2]
[341998665,1731354647758,-610.47,0.00013972,2]
[341998667,1731354647767,-512.65,0.00013972,2]
[341998669,1731354647777,-776.42,0.00013972,2]
[341998671,1731354647786,-776.42,0.00013972,2]
[341998673,1731354647796,-776.42,0.00013972,2]
[341998675,1731354647806,-776.42,0.00013972,2]
[341998677,1731354647815,-776.42,0.00013972,2]
[341998679,1731354647825,-776.42,0.00013972,2]
[341998681,1731354647835,-776.42172368,0.00013972,2]
[341998683,1731354647844,-500.0,0.00013972,2]
[341998685,1731354647854,-500.0,0.00013972,2]
[341998687,1731354647863,-500.0,0.00013972,2]
[341998689,1731354647873,-500.0,0.00013972,2]
[341998691,1731354647883,-500.0,0.00013972,2]
[341998693,1731354647893,-500.0,0.00013972,2]
[341998695,1731354647903,-500.0,0.00013972,2]
[341998697,1731354647913,-500.0,0.00013972,2]
[341998699,1731354647923,-500.0,0.00013972,2]
[341998701,1731354647933,-500.0,0.00013972,2]
[341998703,1731354647943,-500.0,0.00013972,2]
[341998705,1731354647952,-500.0,0.00013972,2]
[341998707,1731354647962,-500.0,0.00013972,2]
[341998709,1731354647972,-500.0,0.00013972,2]
[341998712,1731354647982,-500.0,0.00013972,2]
[341998714,1731354647992,-500.0,0.00013972,2]
[341998716,1731354648001,-500.0,0.00013972,2]
[341998718,1731354648011,-617.31,0.00013972,2]
[341998720,1731354648021,-617.31,0.00013972,2]
[341998722,1731354648031,-617.31,0.00013972,2]
[341998724,1731354648041,-617.31,0.00013972,2]
[341998726,1731354648050,-617.31,0.00013972,2]
[341998728,1731354648060,-617.31,0.00013972,2]
[341998730,1731354648069,-732.78,0.00013972,2]
[341998732,1731354648079,-732.78,0.00013972,2]
[341998734,1731354648091,-732.78,0.00013972,2]
[341998736,1731354648101,-732.78,0.00013972,2]
[341998738,1731354648110,-732.78,0.00013972,2]
[341998740,1731354648120,-732.78,0.00013972,2]
[341998742,1731354648130,-1080.24,0.00013972,2]
[341998744,1731354648140,-1080.24,0.00013972,2]
[341998746,1731354648149,-1080.24,0.00013972,2]
[341998748,1731354648159,-1080.24,0.00013972,2]
[341998750,1731354648169,-1080.24,0.00013972,2]
[341998752,1731354648178,-1080.24,0.00013972,2]
[341998754,1731354648188,-500.0,0.00013972,2]
[341998756,1731354648198,-500.0,0.00013972,2]
[341998758,1731354648208,-410.737573,0.00013972,2]
[341998760,1731354648218,-500.0,0.00013972,2]
[341998762,1731354648228,-500.0,0.00013972,2]
[341998764,1731354648238,-500.0,0.00013972,2]
[341998767,1731354648249,-500.0,0.00013972,2]
[341998769,1731354648259,-500.0,0.00013972,2]
[341998771,1731354648270,-500.0,0.00013972,2]
[341998773,1731354648280,-500.0,0.00013972,2]
[341998775,1731354648290,-500.0,0.00013972,2]
[341998777,1731354648300,-409.41,0.00013972,2]
[341998779,1731354648310,-699.54,0.00013972,2]
[341998781,1731354648320,-500.0,0.00013972,2]
[341998783,1731354648330,-500.0,0.00013972,2]
[341998785,1731354648342,-699.54,0.00013972,2]
[341998787,1731354648352,-699.54,0.00013972,2]
[341998789,1731354648362,-699.54,0.00013972,2]
[341998791,1731354648372,-500.0,0.00013972,2]
[341998793,1731354648383,-500.0,0.00013972,2]
[341998795,1731354648392,-699.54,0.00013972,2]
[341998797,1731354648402,-500.0,0.00013972,2]
[341998799,1731354648412,-500.0,0.00013972,2]
[341998801,1731354648422,-699.54,0.00013972,2]
[341998804,1731354648432,-198.1997556,0.00013972,2]
[341998806,1731354648441,-500.0,0.00013972,2]
[341998808,1731354648451,-696.24,0.00013972,2]
[341998810,1731354648460,-696.24,0.00013972,2]
[341998812,1731354648470,-696.24,0.00013972,2]
[341998814,1731354648480,-189.74545243,0.00013972,2]
[341998854,1731354648971,-506.49454757,0.00013972,2]
[341998856,1731354648984,-696.24,0.00013972,2]
[341998858,1731354649002,-500.0,0.00013972,2]
[341998860,1731354649020,-0.25804795,0.00013972,2]
[341999018,1731355006668,748.62,0.0001096,2]
[341999025,1731355712198,711.18,0.00010456,2]
[341999032,1731355753843,1852.42,0.00012291,2]
[341999034,1731355795524,1000.0,0.00012239,2]
[341999035,1731355797972,1176.38,0.00012239,2]
[341999042,1731355832102,-454.13,0.00012329,2]
[341999043,1731355832156,-374.77521645,0.00012329,2]
[341999044,1731355832168,-115.09478355,0.00012329,2]
[341999045,1731355832177,-160.52,0.00012345,2]
[341999046,1731355832186,-227.05,0.00012346,2]
[341999047,1731355832195,-150.0,0.00012346,2]
[341999048,1731355832204,-300.0,0.00012366,2]
[341999049,1731355832213,-848.05355315,0.00012372,2]
[341999050,1731355832234,-1385.79644685,0.00012372,2]
[341999051,1731355832243,-157.48,0.00012374,2]
[341999052,1731355832256,-2956.34039952,0.00012375,2]
[341999053,1731355832282,-246.47960048,0.00012375,2]
[341999054,1731355832291,-287.86,0.00012375,2]
[341999055,1731355832300,-382.02,0.00012389,2]
[341999056,1731355832308,-520.39,0.00012476,2]
[341999057,1731355832317,-2171.03,0.00012494,2]
[341999058,1731355832327,-250.0,0.0001251,2]
[341999059,1731355832336,-944.0,0.00012643,2]
[341999060,1731355832343,-711.18,0.0001272,2]
[341999061,1731355832352,-312.81,0.00012774,2]
[341999062,1731355832362,-159.3,0.00012808,2]
[341999063,1731355832371,-159.3,0.00012818,2]
[341999064,1731355832380,-159.3,0.00012828,2]
[341999065,1731355832389,-250.0,0.00012836,2]
[341999066,1731355832397,-159.3,0.00012838,2]
[341999067,1731355832406,-159.3,0.00012847,2]
[341999068,1731355832415,-159.3,0.00012857,2]
[341999069,1731355832424,-159.3,0.00012867,2]
[341999070,1731355832433,-150.0,0.00012877,2]
[341999071,1731355832441,-159.3,0.00012877,2]
[341999072,1731355832451,-159.3,0.00012887,2]
[341999073,1731355832460,-159.3,0.00012897,2]
[341999074,1731355832468,-159.3,0.00012907,2]
[341999075,1731355832476,-159.3,0.00012917,2]
[341999076,1731355832484,-159.3,0.00012926,2]
[341999077,1731355832492,-159.3,0.00012936,2]
[341999078,1731355832504,-944.0,0.00012957,2]
[341999079,1731355832514,-725.18,0.00012959,2]
[341999080,1731355832523,-157.48,0.00013199,2]
[341999081,1731355832531,-944.0,0.00013271,2]
[341999082,1731355832540,-150.0,0.0001337,2]
[341999083,1731355832549,-150.0,0.00013549,2]
[341999084,1731355832558,-944.0,0.00013585,2]
[341999085,1731355832567,-6976.0,0.00013663,2]
[341999086,1731355832576,-1004.30536808,0.00013663,2]
[341999087,1731355832585,-563.0,0.00013666,2]
[341999088,1731355832594,-628.0,0.00013666,2]
[341999089,1731355832603,-1102.4394411,0.00013693,2]
[341999090,1731355832821,-1146.32012109,0.00013693,2]
[341999091,1731355832831,-500.0,0.00013698,2]
[341999092,1731355832840,-500.0,0.00013698,2]
[341999093,1731355832849,-236.0509318,0.00013698,2]
[341999094,1731355832858,-535.40903834,0.00013698,2]
[341999095,1731355832867,-500.0,0.00013698,2]
[341999096,1731355832876,-500.0,0.00013698,2]
[341999097,1731355832885,-357.05220529,0.00013698,2]
[341999098,1731355832896,-142.94779471,0.00013698,2]
[341999099,1731355832907,-500.0,0.00013698,2]
[341999100,1731355832916,-500.0,0.00013698,2]
[341999101,1731355832927,-500.0,0.00013698,2]
[341999102,1731355832936,-500.0,0.00013698,2]
[341999103,1731355832947,-500.0,0.00013698,2]
[341999104,1731355832957,-500.0,0.00013698,2]
[341999105,1731355832966,-500.0,0.00013698,2]
[341999106,1731355832975,-500.0,0.00013698,2]
[341999107,1731355832984,-500.0,0.00013698,2]
[341999108,1731355832995,-500.0,0.00013698,2]
[341999109,1731355833007,-500.0,0.00013698,2]
[341999110,1731355833017,-500.0,0.00013698,2]
[341999111,1731355833026,-391.35220589,0.00013698,2]
[341999112,1731355833037,-108.64779411,0.00013698,2]
[341999113,1731355833047,-620.06988315,0.00013698,2]
[341999114,1731355833056,-500.0,0.00013698,2]
[341999115,1731355833065,-500.0,0.00013698,2]
[341999116,1731355833074,-603.14121952,0.00013698,2]
[341999117,1731355833084,-500.0,0.00013698,2]
[341999118,1731355833093,-537.59254946,0.00013698,2]
[341999119,1731355833102,-363.2,0.00013698,2]
[341999120,1731355833111,-501.33472042,0.00013698,2]
[341999121,1731355833120,-267.21974377,0.00013698,2]
[341999122,1731355833130,-250.0,0.00013699,2]
[341999123,1731355833139,-150.0,0.00013699,2]
[341999124,1731355833149,-200.0,0.000137,2]
[341999125,1731355833158,-12210.69932657,0.00013768,2]
[341999126,1731355833173,-1722.60765182,0.00013768,2]
[341999127,1731355833199,-283.05645559,0.00013768,2]
[341999128,1731355833270,-837.89999222,0.00013768,2]
[341999129,1731355833319,-868.69392,0.00013768,2]
[341999156,1731355838146,-291.7635,0.00012366,2]
[341999157,1731355838254,-8619.56864,0.00012366,2]
[341999158,1731355838265,-546.57784,0.00012366,2]
[341999159,1731355838417,-22105.37671299,0.00012366,2]
[341999160,1731355838425,-32478.2657538,0.00013768,2]
[341999161,1731355838434,-1000.0,0.00013769,2]
[341999162,1731355838443,-1385.095,0.00013773,2]
[341999163,1731355838452,-10632.86986169,0.00013773,2]
[341999164,1731355838460,-10632.86986162,0.00013787,2]
[341999165,1731355838469,-10632.86986162,0.00013801,2]
[341999166,1731355838478,-10632.86986162,0.00013815,2]
[341999167,1731355838488,-10632.86986162,0.00013829,2]
[341999168,1731355838496,-10632.86986162,0.00013844,2]
[341999169,1731355838508,-10632.86986162,0.00013858,2]
[341999170,1731355838517,-8146.6769,0.00013861,2]
[341999171,1731355838526,-1569.2611,0.00013861,2]
[341999172,1731355838535,-212.13780901,0.00013871,2]
[341999173,1731355838544,-10632.86986162,0.00013872,2]
[341999174,1731355838553,-2664.78072021,0.00013872,2]
[341999175,1731355838562,-163.099122,0.00013873,2]
[341999176,1731355838571,-212.13780901,0.00013875,2]
[341999177,1731355838580,-500.0,0.00013879,2]
[341999178,1731355838589,-535.08,0.00013879,2]
[341999179,1731355838598,-500.0,0.00013879,2]
[341999180,1731355838607,-500.0,0.00013879,2]
[341999181,1731355838615,-500.0,0.00013879,2]
[341999182,1731355838624,-212.13780901,0.00013879,2]
[341999183,1731355838633,-186.17551278,0.0001388,2]
[341999184,1731355838642,-212.13780901,0.00013883,2]
[341999185,1731355838651,-10632.86986162,0.00013886,2]
[341999186,1731355838660,-212.13780901,0.00013888,2]
[341999187,1731355838669,-462.601,0.0001389,2]
[341999188,1731355838678,-186.17551277,0.0001389,2]
[341999190,1731355838687,-13780.03293992,0.000139,2]
[341999191,1731355838696,-8500.0,0.000139,2]
[341999192,1731355838705,-156.98745195,0.000139,2]
[341999193,1731355838713,-156.98745195,0.000139,2]
[341999194,1731355838723,-156.98745195,0.000139,2]
[341999195,1731355838732,-156.98745195,0.000139,2]
[341999196,1731355838741,-156.98745195,0.000139,2]
[341999197,1731355838749,-156.98745195,0.000139,2]
[341999198,1731355838760,-156.98745195,0.000139,2]
[341999199,1731355838769,-156.98745195,0.000139,2]
[341999200,1731355838778,-156.98745195,0.000139,2]
[341999201,1731355838787,-156.98745195,0.000139,2]
[341999202,1731355838796,-156.98745195,0.000139,2]
[341999203,1731355838805,-156.98745195,0.000139,2]
[341999204,1731355838813,-156.98745195,0.000139,2]
[341999206,1731355838823,-156.98745195,0.000139,2]
[341999207,1731355838833,-156.98745195,0.000139,2]
[341999208,1731355838842,-156.98745195,0.000139,2]
[341999209,1731355838851,-156.98,0.000139,2]
[341999210,1731355838860,-186.17551277,0.000139,2]
[341999211,1731355838869,-10632.86986162,0.000139,2]
[341999212,1731355838878,-500.0,0.0001394,2]
[341999213,1731355838889,-500.0,0.0001394,2]
[341999214,1731355838898,-500.0,0.0001394,2]
[341999215,1731355838907,-500.0,0.0001394,2]
[341999216,1731355838917,-500.0,0.0001394,2]
[341999217,1731355838927,-500.0,0.0001394,2]
[341999218,1731355838936,-500.0,0.0001394,2]
[341999219,1731355838945,-500.0,0.0001394,2]
[341999220,1731355838954,-500.0,0.0001394,2]
[341999221,1731355838965,-519.86627289,0.0001394,2]
[341999222,1731355838974,-2813.82,0.0001394,2]
[341999223,1731355838983,-500.0,0.0001394,2]
[341999224,1731355838993,-500.0,0.0001394,2]
[341999225,1731355839004,-500.0,0.00013941,2]
[341999226,1731355839013,-500.0,0.00013941,2]
[341999227,1731355839022,-500.0,0.00013941,2]
[341999228,1731355839031,-500.0,0.00013941,2]
[341999229,1731355839040,-500.0,0.00013942,2]
[341999230,1731355839049,-159.21,0.00013942,2]
[341999231,1731355839058,-500.0,0.00013942,2]
[341999232,1731355839068,-500.0,0.00013942,2]
[341999233,1731355839076,-2335.1047159,0.00013961,2]
[341999234,1731355839087,-3506.9010797,0.00013961,2]
[341999235,1731355839096,-7010.1276925,0.00013961,2]
[341999236,1731355839105,-500.0,0.0001397,2]
[341999237,1731355839114,-500.0,0.0001397,2]
[341999238,1731355839123,-500.0,0.0001397,2]
[341999239,1731355839132,-500.0,0.0001397,2]
[341999240,1731355839141,-500.0,0.0001397,2]
[341999241,1731355839150,-1212.12,0.0001397,2]
[341999242,1731355839159,-500.0,0.0001397,2]
[341999243,1731355839167,-944.54,0.0001397,2]
[341999244,1731355839176,-3178.89,0.0001397,2]
[341999245,1731355839184,-500.0,0.0001397,2]
[341999246,1731355839193,-500.0,0.0001397,2]
[341999247,1731355839202,-500.0,0.0001397,2]
[341999248,1731355839211,-150.01,0.00013971,2]
[341999249,1731355839220,-2234.14137536,0.00013971,2]
[341999250,1731355839229,-500.0,0.00013971,2]
[341999251,1731355839239,-178.18028478,0.00013971,2]
[341999252,1731355839247,-508.49708391,0.00013971,2]
[341999253,1731355839258,-511.85870385,0.00013971,2]
[341999254,1731355839266,-500.0,0.00013971,2]
[341999255,1731355839275,-500.0,0.00013971,2]
[341999256,1731355839284,-500.0,0.00013971,2]
[341999257,1731355839293,-500.0,0.00013971,2]
[341999258,1731355839302,-500.0,0.00013971,2]
[341999259,1731355839311,-500.0,0.00013971,2]
[341999260,1731355839320,-500.0,0.00013971,2]
[341999261,1731355839329,-500.0,0.00013971,2]
[341999262,1731355839337,-500.0,0.00013971,2]
[341999263,1731355839346,-500.0,0.00013971,2]
[341999264,1731355839355,-500.0,0.00013971,2]
[341999265,1731355839364,-500.0,0.00013971,2]
[341999266,1731355839373,-500.0,0.00013971,2]
[341999267,1731355839382,-500.0,0.00013971,2]
[341999268,1731355839390,-500.0,0.00013971,2]
[341999269,1731355839400,-500.0,0.00013971,2]
[341999270,1731355839409,-500.0,0.00013971,2]
[341999271,1731355839417,-540.12,0.00013971,2]
[341999272,1731355839426,-500.0,0.00013971,2]
[341999273,1731355839435,-500.0,0.00013971,2]
[341999274,1731355839444,-500.0,0.00013971,2]
[341999275,1731355839453,-500.0,0.00013971,2]
[341999276,1731355839462,-500.0,0.00013971,2]
[341999277,1731355839472,-500.0,0.00013971,2]
[341999278,1731355839481,-421.86274507,0.00013971,2]
[341999279,1731355839490,-559.35,0.00013971,2]
[341999280,1731355839500,-500.0,0.00013971,2]
[341999281,1731355839511,-500.0,0.00013971,2]
[341999282,1731355839520,-500.0,0.00013971,2]
[341999283,1731355839530,-533.97239198,0.00013971,2]
[341999284,1731355839539,-500.0,0.00013971,2]
[341999285,1731355839548,-500.0,0.00013971,2]
[341999286,1731355839557,-500.0,0.00013971,2]
[341999287,1731355839566,-500.0,0.00013971,2]
[341999288,1731355839575,-500.0,0.00013971,2]
[341999289,1731355839584,-500.0,0.00013971,2]
[341999290,1731355839593,-500.0,0.00013971,2]
[341999291,1731355839603,-500.0,0.00013971,2]
[341999292,1731355839612,-500.0,0.00013971,2]
[341999293,1731355839622,-500.0,0.00013971,2]
[341999294,1731355839631,-1000.0,0.00013971,2]
[341999295,1731355839640,-500.0,0.00013971,2]
[341999296,1731355839649,-1000.0,0.00013971,2]
[341999297,1731355839658,-500.0,0.00013971,2]
[341999298,1731355839667,-500.0,0.00013971,2]
[341999299,1731355839677,-500.0,0.00013971,2]
[341999300,1731355839685,-523.81,0.00013971,2]
[341999301,1731355839695,-500.0,0.00013971,2]
[341999302,1731355839704,-500.0,0.00013971,2]
[341999303,1731355839713,-500.0,0.00013971,2]
[341999304,1731355839722,-304.0,0.00013971,2]
[341999305,1731355839731,-500.0,0.00013971,2]
[341999306,1731355839740,-505.73543995,0.00013971,2]
[341999307,1731355839749,-500.0,0.00013971,2]
[341999308,1731355839760,-500.0,0.00013971,2]
[341999309,1731355839769,-500.0,0.00013971,2]
[341999310,1731355839779,-500.0,0.00013971,2]
[341999311,1731355839788,-500.0,0.00013971,2]
[341999312,1731355839797,-500.0,0.00013971,2]
[341999313,1731355839805,-500.0,0.00013971,2]
[341999314,1731355839814,-259.27,0.00013971,2]
[341999315,1731355839823,-1212.12,0.00013971,2]
[341999316,1731355839833,-500.0,0.00013971,2]
[341999317,1731355839842,-500.0,0.00013971,2]
[341999318,1731355839851,-944.54,0.00013971,2]
[341999319,1731355839861,-3178.89,0.00013971,2]
[341999320,1731355839871,-500.0,0.00013971,2]
[341999321,1731355839881,-500.0,0.00013971,2]
[341999322,1731355839890,-249.624188,0.00013971,2]
[341999323,1731355839899,-500.0,0.00013971,2]
[341999325,1731355839910,-2813.82,0.00013971,2]
[341999327,1731355839921,-1846.7,0.00013971,2]
[341999328,1731355839930,-500.0,0.00013971,2]
[341999329,1731355839939,-1554.16,0.00013971,2]
[341999330,1731355839948,-500.0,0.00013971,2]
[341999331,1731355839958,-500.0,0.00013971,2]
[341999332,1731355839967,-660.63,0.00013971,2]
[341999333,1731355839976,-500.0,0.00013971,2]
[341999334,1731355839985,-500.0,0.00013971,2]
[341999335,1731355839994,-444.65810746,0.00013971,2]
[341999336,1731355840004,-541.35058611,0.00013971,2]
[341999337,1731355840013,-500.0,0.00013971,2]
[341999338,1731355840023,-500.0,0.00013971,2]
[341999339,1731355840031,-277.65227817,0.00013971,2]
[341999341,1731355840041,-500.0,0.00013971,2]
[341999343,1731355840050,-396.73,0.00013971,2]
[341999345,1731355840059,-500.0,0.00013971,2]
[341999346,1731355840068,-500.0,0.00013971,2]
[341999347,1731355840077,-192.34713287,0.00013971,2]
[341999348,1731355840086,-500.0,0.00013971,2]
[341999349,1731355840095,-500.0,0.00013971,2]
[341999350,1731355840105,-390.94284748,0.00013971,2]
[341999351,1731355840114,-500.0,0.00013971,2]
[341999352,1731355840123,-500.0,0.00013971,2]
[341999353,1731355840132,-500.0,0.00013971,2]
[341999354,1731355840141,-500.0,0.00013971,2]
[341999355,1731355840150,-500.0,0.00013971,2]
[341999356,1731355840159,-500.0,0.00013971,2]
[341999357,1731355840168,-200.0,0.00013972,2]
[341999358,1731355840177,-1000.0,0.00013972,2]
[341999359,1731355840186,-1000.0,0.00013972,2]
[341999360,1731355840195,-1000.0,0.00013972,2]
[341999361,1731355840203,-1000.0,0.00013972,2]
[341999362,1731355840212,-1000.0,0.00013972,2]
[341999363,1731355840221,-1000.0,0.00013972,2]
[341999364,1731355840230,-1000.0,0.00013972,2]
[341999365,1731355840239,-1000.0,0.00013972,2]
[341999366,1731355840248,-500.0,0.00013972,2]
[341999367,1731355840257,-1000.0,0.00013972,2]
[341999368,1731355840266,-500.0,0.00013972,2]
[341999369,1731355840275,-1000.0,0.00013972,2]
[341999370,1731355840285,-1000.0,0.00013972,2]
[341999371,1731355840294,-1000.0,0.00013972,2]
[341999372,1731355840303,-1000.0,0.00013972,2]
[341999373,1731355840312,-1000.0,0.00013972,2]
[341999374,1731355840321,-1000.0,0.00013972,2]
[341999375,1731355840331,-1000.0,0.00013972,2]
[341999376,1731355840340,-1000.0,0.00013972,2]
[341999377,1731355840349,-1000.0,0.00013972,2]
[341999378,1731355840358,-1000.0,0.00013972,2]
[341999379,1731355840548,-1000.0,0.00013972,2]
[341999380,1731355840557,-1000.0,0.00013972,2]
[341999381,1731355840566,-1000.0,0.00013972,2]
[341999382,1731355840574,-1000.0,0.00013972,2]
[341999383,1731355840583,-1000.0,0.00013972,2]
[341999384,1731355840592,-1000.0,0.00013972,2]
[341999385,1731355840601,-1000.0,0.00013972,2]
[341999386,1731355840610,-1000.0,0.00013972,2]
[341999387,1731355840619,-1000.0,0.00013972,2]
[341999388,1731355840628,-559.00029972,0.00013972,2]
[341999389,1731355840638,-200.0,0.00013972,2]
[341999390,1731355840647,-500.0,0.00013972,2]
[341999391,1731355840656,-500.0,0.00013972,2]
[341999392,1731355840665,-500.0,0.00013972,2]
[341999393,1731355840675,-500.0,0.00013972,2]
[341999394,1731355840683,-500.0,0.00013972,2]
[341999395,1731355840693,-500.0,0.00013972,2]
[341999396,1731355840702,-369.24,0.00013972,2]
[341999397,1731355840711,-500.0,0.00013972,2]
[341999398,1731355840720,-500.0,0.00013972,2]
[341999399,1731355840728,-180.23138802,0.00013972,2]
[341999400,1731355840738,-500.0,0.00013972,2]
[341999401,1731355840747,-500.0,0.00013972,2]
[341999402,1731355840757,-500.0,0.00013972,2]
[341999403,1731355840766,-499.10283933,0.00013972,2]
[341999404,1731355840775,-500.0,0.00013972,2]
[341999405,1731355840783,-500.0,0.00013972,2]
[341999406,1731355840791,-500.0,0.00013972,2]
[341999407,1731355840800,-500.0,0.00013972,2]
[341999408,1731355840809,-345.33,0.00013972,2]
[341999409,1731355840818,-468.64,0.00013972,2]
[341999410,1731355840827,-524.7555038,0.00013972,2]
[341999411,1731355840836,-545.66,0.00013972,2]
[341999412,1731355840845,-508.53833876,0.00013972,2]
[341999413,1731355840854,-500.0,0.00013972,2]
[341999414,1731355840863,-500.0,0.00013972,2]
[341999415,1731355840872,-500.0,0.00013972,2]
[341999416,1731355840881,-500.0,0.00013972,2]
[341999417,1731355840890,-534.48,0.00013972,2]
[341999418,1731355840899,-500.0,0.00013972,2]
[341999419,1731355840910,-500.0,0.00013972,2]
[341999420,1731355840922,-500.0,0.00013972,2]
[341999421,1731355840931,-500.0,0.00013972,2]
[341999422,1731355840940,-500.0,0.00013972,2]
[341999423,1731355840950,-500.0,0.00013972,2]
[341999424,1731355840959,-576.59924852,0.00013972,2]
[341999425,1731355840968,-500.0,0.00013972,2]
[341999426,1731355840977,-500.0,0.00013972,2]
[341999427,1731355840986,-500.0,0.00013972,2]
[341999428,1731355840997,-500.0,0.00013972,2]
[341999429,1731355841007,-500.0,0.00013972,2]
[341999430,1731355841017,-500.0,0.00013972,2]
[341999431,1731355841026,-500.0,0.00013972,2]
[341999432,1731355841035,-500.0,0.00013972,2]
[341999433,1731355841044,-500.0,0.00013972,2]
[341999434,1731355841054,-500.0,0.00013972,2]
[341999435,1731355841063,-561.81,0.00013972,2]
[341999436,1731355841071,-500.0,0.00013972,2]
[341999437,1731355841081,-500.0,0.00013972,2]
[341999438,1731355841090,-500.0,0.00013972,2]
[341999439,1731355841099,-500.0,0.00013972,2]
[341999440,1731355841108,-500.0,0.00013972,2]
[341999441,1731355841118,-243.16543514,0.00013972,2]
[341999442,1731355841127,-540.12,0.00013972,2]
[341999443,1731355841136,-540.12,0.00013972,2]
[341999444,1731355841146,-540.12,0.00013972,2]
[341999445,1731355841155,-540.12,0.00013972,2]
[341999446,1731355841164,-540.12,0.00013972,2]
[341999447,1731355841173,-540.12,0.00013972,2]
[341999448,1731355841183,-540.12,0.00013972,2]
[341999449,1731355841192,-540.12,0.00013972,2]
[341999450,1731355841201,-540.12,0.00013972,2]
[341999451,1731355841210,-540.12,0.00013972,2]
[341999452,1731355841218,-500.0,0.00013972,2]
[341999453,1731355841227,-500.0,0.00013972,2]
[341999454,1731355841236,-500.0,0.00013972,2]
[341999455,1731355841245,-500.0,0.00013972,2]
[341999456,1731355841254,-500.0,0.00013972,2]
[341999457,1731355841263,-500.0,0.00013972,2]
[341999458,1731355841272,-500.0,0.00013972,2]
[341999459,1731355841281,-500.0,0.00013972,2]
[341999460,1731355841290,-500.0,0.00013972,2]
[341999461,1731355841299,-500.0,0.00013972,2]
[341999462,1731355841307,-500.0,0.00013972,2]
[341999463,1731355841316,-500.0,0.00013972,2]
[341999464,1731355841326,-500.0,0.00013972,2]
[341999465,1731355841335,-500.0,0.00013972,2]
[341999466,1731355841344,-500.0,0.00013972,2]
[341999467,1731355841353,-500.0,0.00013972,2]
[341999468,1731355841363,-257.3,0.00013972,2]
[341999469,1731355841371,-500.0,0.00013972,2]
[341999470,1731355841379,-500.0,0.00013972,2]
[341999471,1731355841388,-500.0,0.00013972,2]
[341999472,1731355841397,-500.0,0.00013972,2]
[341999473,1731355841406,-500.0,0.00013972,2]
[341999474,1731355841415,-500.0,0.00013972,2]
[341999475,1731355841424,-500.0,0.00013972,2]
[341999476,1731355841433,-500.0,0.00013972,2]
[341999477,1731355841442,-500.0,0.00013972,2]
[341999478,1731355841452,-500.0,0.00013972,2]
[341999479,1731355841461,-500.0,0.00013972,2]
[341999480,1731355841470,-500.0,0.00013972,2]
[341999481,1731355841479,-500.0,0.00013972,2]